fUSD/lending_fUSD_20250209
["ID","MTS","AMOUNT","RATE_DAILY","PERIOD"]
[352434982,1739106674937,-500.0,0.00011306,2]
[352434983,1739106674947,-500.0,0.00011306,2]
[352434984,1739106674956,-393.55,0.00011306,2]
[352434985,1739106674966,-500.0,0.00011306,2]
[352434986,1739106674975,-605.03,0.00011306,2]
[352434987,1739106674985,-166.78798828,0.00011306,2]
[352434988,1739106674996,-490.83874254,0.00011306,2]
[352434989,1739106675005,-544.71883941,0.00011306,2]
[352434990,1739106675015,-500.0,0.00011306,2]
[352434991,1739106675024,-522.83,0.00011306,2]
[352434992,1739106675034,-522.45,0.00011306,2]
[352434993,1739106675044,-500.0,0.00011306,2]
[352434994,1739106675053,-592.87592365,0.00011306,2]
[352434995,1739106675062,-500.0,0.00011306,2]
[352434996,1739106675072,-614.75,0.00011306,2]
[352434997,1739106675081,-500.0,0.00011306,2]
[352434998,1739106675090,-500.0,0.00011306,2]
[352434999,1739106675099,-500.0,0.00011306,2]
[352435000,1739106675108,-572.98,0.00011306,2]
[352435001,1739106675118,-500.0,0.00011306,2]
[352435002,1739106675127,-500.0,0.00011306,2]
[352435003,1739106675137,-224.25815804,0.00011306,2]
[352435004,1739106675146,-500.0,0.00011306,2]
[352435005,1739106675156,-500.0,0.00011306,2]
[352435006,1739106675165,-500.0,0.00011306,2]
[352435007,1739106675174,-506.17,0.00011306,2]
[352435008,1739106675184,-500.0,0.00011306,2]
[352435009,1739106675194,-500.0,0.00011306,2]
[352435010,1739106675204,-748.05,0.00011306,2]
[352435011,1739106675214,-500.0,0.00011306,2]
[352435012,1739106675223,-500.0,0.00011306,2]
[352435013,1739106675233,-500.0,0.00011306,2]
[352435014,1739106675243,-500.0,0.00011306,2]
[352435015,1739106675252,-631.5,0.00011306,2]
[352435016,1739106675262,-241.26,0.00011306,2]
[352435017,1739106675271,-500.0,0.00011306,2]
[352435018,1739106675280,-168.70388458,0.00011306,2]
[352435019,1739106675290,-600.19,0.00011306,2]
[352435020,1739106675300,-591.81,0.00011306,2]
[352435021,1739106675309,-500.0,0.00011306,2]
[352435022,1739106675318,-560.92,0.00011306,2]
[352435023,1739106675328,-500.0,0.00011306,2]
[352435024,1739106675337,-500.0,0.00011306,2]
[352435025,1739106675347,-500.0,0.00011306,2]
[352435026,1739106675356,-500.0,0.00011306,2]
[352435027,1739106675365,-641.41,0.00011306,2]
[352435028,1739106675374,-500.0,0.00011306,2]
[352435029,1739106675383,-693.12,0.00011306,2]
[352435030,1739106675393,-640.93,0.00011306,2]
[352435031,1739106675402,-614.76,0.00011306,2]
[352435032,1739106675411,-500.0,0.00011306,2]
[352435033,1739106675421,-500.0,0.00011306,2]
[352435034,1739106675430,-500.0,0.00011306,2]
[352435035,1739106675440,-500.0,0.00011306,2]
[352435036,1739106675450,-619.39,0.00011306,2]
[352435037,1739106675459,-500.0,0.00011306,2]
[352435038,1739106675469,-500.0,0.00011306,2]
[352435039,1739106675478,-500.0,0.00011306,2]
[352435040,1739106675487,-500.0,0.00011306,2]
[352435041,1739106675498,-717.55,0.00011306,2]
[352435042,1739106675507,-500.0,0.00011306,2]
[352435043,1739106675518,-500.0,0.00011306,2]
[352435044,1739106675528,-500.0,0.00011306,2]
[352435045,1739106675538,-858.22,0.00011306,2]
[352435046,1739106675547,-1507.41,0.00011306,2]
[352435047,1739106675557,-916.66,0.00011306,2]
[352435048,1739106675566,-500.0,0.00011306,2]
[352435049,1739106675575,-611.18,0.00011306,2]
[352435050,1739106675585,-757.31,0.00011306,2]
[352435051,1739106675594,-500.0,0.00011306,2]
[352435052,1739106675604,-1563.09,0.00011306,2]
[352435053,1739106675614,-299.91,0.00011306,2]
[352435054,1739106675624,-986.62,0.00011306,2]
[352435055,1739106675634,-1475.65,0.00011306,2]
[352435056,1739106675644,-500.0,0.00011306,2]
[352435057,1739106675654,-500.0,0.00011306,2]
[352435058,1739106675664,-500.0,0.00011306,2]
[352435059,1739106675673,-1400.53,0.00011306,2]
[352435060,1739106675683,-500.0,0.00011306,2]
[352435061,1739106675692,-961.01,0.00011306,2]
[352435062,1739106675702,-500.0,0.00011306,2]
[352435063,1739106675714,-1071.2,0.00011306,2]
[352435064,1739106675723,-998.49,0.00011306,2]
[352435065,1739106675733,-736.96,0.00011306,2]
[352435066,1739106675742,-570.11,0.00011306,2]
[352435067,1739106675752,-500.0,0.00011306,2]
[352435068,1739106675762,-500.0,0.00011306,2]
[352435069,1739106675771,-670.18,0.00011306,2]
[352435070,1739106675781,-500.0,0.00011306,2]
[352435071,1739106675791,-500.0,0.00011306,2]
[352435072,1739106675802,-500.0,0.00011306,2]
[352435073,1739106675813,-656.35,0.00011306,2]
[352435074,1739106675823,-729.36,0.00011306,2]
[352435075,1739106675832,-500.0,0.00011306,2]
[352435076,1739106675842,-500.0,0.00011306,2]
[352435077,1739106675852,-569.77,0.00011306,2]
[352435078,1739106675862,-500.0,0.00011306,2]
[352435079,1739106675871,-1076.58,0.00011306,2]
[352435080,1739106675881,-578.4,0.00011307,2]
[352435081,1739106675891,-1250.56,0.00011307,2]
[352435082,1739106675900,-899.05,0.00011307,2]
[352435083,1739106675910,-618.21,0.00011307,2]
[352435084,1739106675919,-662.14,0.00011307,2]
[352435085,1739106675930,-432.2,0.00011307,2]
[352435086,1739106675939,-752.33,0.00011307,2]
[352435087,1739106675949,-742.165682,0.00011307,2]
[352435088,1739106675958,-500.0,0.00011307,2]
[352435089,1739106675968,-1019.86,0.00011307,2]
[352435090,1739106675978,-980.67,0.00011307,2]
[352435091,1739106675988,-1329.47,0.00011307,2]
[352435092,1739106675999,-783.393527,0.00011307,2]
[352435093,1739106676008,-535.53,0.00011307,2]
[352435094,1739106676018,-598.75,0.00011307,2]
[352435095,1739106676028,-523.83,0.00011307,2]
[352435096,1739106676038,-919.3,0.00011307,2]
[352435097,1739106676048,-1920.06,0.00011307,2]
[352435098,1739106676057,-787.71,0.00011307,2]
[352435099,1739106676067,-1998.86,0.00011307,2]
[352435100,1739106676078,-540.82,0.00011307,2]
[352435101,1739106676088,-1113.24,0.00011307,2]
[352435102,1739106676098,-928.63,0.00011307,2]
[352435103,1739106676108,-851.99,0.00011307,2]
[352435104,1739106676118,-891.26993699,0.00011307,2]
[352435105,1739106676132,-132.67006301,0.00011307,2]
[352435106,1739106676142,-755.52,0.00011307,2]
[352435107,1739106676151,-601.89,0.00011307,2]
[352435108,1739106676161,-829.34,0.00011307,2]
[352435109,1739106676170,-803.98,0.00011307,2]
[352435110,1739106676180,-2771.04,0.00011307,2]
[352435111,1739106676190,-794.85,0.00011307,2]
[352435112,1739106676199,-1039.27,0.00011307,2]
[352435113,1739106676208,-870.78,0.00011307,2]
[352435114,1739106676218,-500.66,0.00011307,2]
[352435115,1739106676227,-914.61,0.00011307,2]
[352435116,1739106676236,-1200.03,0.00011307,2]
[352435117,1739106676246,-1124.57,0.00011307,2]
[352435118,1739106676255,-908.92,0.00011307,2]
[352435119,1739106676264,-500.0,0.00011307,2]
[352435120,1739106676274,-1060.39,0.00011307,2]
[352435121,1739106676283,-2161.3,0.00011307,2]
[352435122,1739106676292,-556.45,0.00011307,2]
[352435123,1739106676302,-939.07,0.00011307,2]
[352435124,1739106676311,-860.85,0.00011307,2]
[352435125,1739106676320,-1068.19,0.00011307,2]
[352435126,1739106676330,-1238.31,0.00011307,2]
[352435127,1739106676339,-525.14,0.00011307,2]
[352435128,1739106676348,-813.79,0.00011307,2]
[352435129,1739106676357,-1066.96,0.00011307,2]
[352435130,1739106676366,-1397.61,0.00011307,2]
[352435131,1739106676376,-924.82,0.00011307,2]
[352435132,1739106676386,-500.0,0.00011307,2]
[352435133,1739106676395,-1371.09,0.00011307,2]
[352435134,1739106676404,-945.49,0.00011307,2]
[352435135,1739106676414,-1107.28,0.00011307,2]
[352435136,1739106676423,-515.19,0.00011307,2]
[352435137,1739106676432,-1000.0,0.00011307,2]
[352435138,1739106676441,-1205.06,0.00011307,2]
[352435139,1739106676450,-1100.04,0.00011307,2]
[352435140,1739106676460,-588.03,0.00011307,2]
[352435141,1739106676470,-930.56,0.00011307,2]
[352435142,1739106676479,-877.41,0.00011307,2]
[352435143,1739106676490,-500.0,0.00011307,2]
[352435144,1739106676502,-1224.28,0.00011307,2]
[352435145,1739106676512,-882.75,0.00011307,2]
[352435146,1739106676522,-1057.59,0.00011307,2]
[352435147,1739106676531,-776.1,0.00011307,2]
[352435148,1739106676540,-500.0,0.00011307,2]
[352435149,1739106676550,-573.16,0.00011307,2]
[352435150,1739106676560,-500.0,0.00011308,2]
[352435151,1739106676570,-631.71,0.00011308,2]
[352435152,1739106676580,-500.0,0.00011308,2]
[352435153,1739106676590,-791.05,0.00011308,2]
[352435154,1739106676599,-567.59,0.00011308,2]
[352435155,1739106676608,-500.0,0.00011308,2]
[352435156,1739106676619,-574.32,0.00011308,2]
[352435157,1739106676631,-500.0,0.00011308,2]
[352435158,1739106676640,-672.63,0.00011308,2]
[352435159,1739106676651,-500.0,0.00011308,2]
[352435160,1739106676660,-500.0,0.00011308,2]
[352435161,1739106676671,-500.0,0.00011308,2]
[352435162,1739106676681,-500.0,0.00011308,2]
[352435163,1739106676692,-500.0,0.00011308,2]
[352435164,1739106676701,-500.0,0.00011308,2]
[352435165,1739106676714,-500.0,0.00011308,2]
[352435166,1739106676724,-83.65683334,0.00011308,2]
[352435167,1739106677069,-483.03923396,0.00010621,2]
[352435168,1739106677166,-125.42054836,0.00010621,2]
[352435169,1739106677175,-465.41127164,0.00010621,2]
[352435170,1739106677432,-500.0,0.00010485,2]
[352435171,1739106677443,-496.4264931,0.00010614,2]
[352435173,1739106768760,305.91080422,0.0002,120]
[352435174,1739107035389,150.0,7.983e-05,2]
[352435175,1739107035547,150.0,7.783e-05,2]
[352435178,1739107536272,2000.0,8e-05,2]
[352435209,1739107831867,-280.16319036,8.219e-05,2]
[352435210,1739107831979,-145.71680964,8.219e-05,2]
[352435211,1739107831990,-2000.0,9.393e-05,2]
[352435212,1739107832000,-1000.0,9.412e-05,2]
[352435213,1739107832011,-2012.57,9.458e-05,2]
[352435214,1739107832023,-456.16,9.468e-05,2]
[352435215,1739107832035,-357.66,9.475e-05,2]
[352435216,1739107832047,-500.0,9.562e-05,2]
[352435217,1739107832057,-260.64,9.571e-05,2]
[352435218,1739107832068,-208.16,9.725e-05,2]
[352435219,1739107832079,-173.19,9.745e-05,2]
[352435220,1739107832089,-250.0,9.752e-05,2]
[352435221,1739107832099,-209.0,9.973e-05,2]
[352435222,1739107832110,-150.0,0.00010137,2]
[352435223,1739107832121,-185.84,0.00010137,2]
[352435224,1739107832132,-371.92,0.00010137,2]
[352435225,1739107832143,-652.519868,0.00010162,2]
[352435226,1739107832154,-371.7,0.00010167,2]
[352435227,1739107832164,-369.21,0.00010182,2]
[352435228,1739107832175,-379.96,0.00010205,2]
[352435229,1739107832185,-371.7,0.00010205,2]
[352435230,1739107832195,-2064.7673136,0.00010232,2]
[352435231,1739107832206,-67511.66031161,0.00010234,2]
[352435232,1739107832217,-15300.2385446,0.00010234,2]
[352435233,1739107832227,-2064.7673136,0.00010235,2]
[352435234,1739107832239,-15300.2385446,0.00010237,2]
[352435235,1739107832250,-584.12943953,0.00010245,2]
[352435236,1739107832262,-1203.3692197,0.0001025,2]
[352435237,1739107832272,-15300.2385446,0.00010255,2]
[352435238,1739107832283,-200.0,0.00010256,2]
[352435239,1739107832294,-15300.2385446,0.00010257,2]
[352435240,1739107832304,-67511.66031161,0.0001026,2]
[352435241,1739107832315,-584.12943953,0.0001026,2]
[352435242,1739107832326,-200.0,0.0001026,2]
[352435244,1739107832336,-9135.49019996,0.0001027,2]
[352435246,1739107832347,-1203.3692197,0.00010272,2]
[352435248,1739107832359,-1203.3692197,0.00010272,2]
[352435249,1739107832369,-584.12943953,0.00010279,2]
[352435250,1739107832380,-9135.49019996,0.00010281,2]
[352435251,1739107832390,-9135.49019996,0.00010283,2]
[352435252,1739107832400,-584.12943953,0.00010285,2]
[352435253,1739107832411,-1203.3692197,0.00010287,2]
[352435254,1739107832422,-14186.97109676,0.00010287,2]
[352435259,1739107832847,-482.23175,0.00010287,2]
[352435260,1739107832859,-1102.09184474,0.00010287,2]
[352435261,1739107832871,-51740.36562011,0.00010287,2]
[352435262,1739107832880,-2064.7673136,0.00010288,2]
[352435263,1739107832889,-200.0,0.00010289,2]
[352435264,1739107832898,-9135.49019996,0.0001029,2]
[352435265,1739107832908,-67511.66031161,0.00010294,2]
[352435266,1739107832917,-200.0,0.00010296,2]
[352435267,1739107832926,-2064.7673136,0.00010299,2]
[352435268,1739107832935,-425.88,0.00010451,2]
[352435269,1739107832944,-229.58512654,0.00010465,2]
[352435270,1739107832954,-376.62,0.00010485,2]
[352435271,1739107832964,-500.0,0.00010485,2]
[352435272,1739107832975,-500.0,0.00010485,2]
[352435273,1739107832984,-500.0,0.00010485,2]
[352435274,1739107832995,-500.0,0.00010485,2]
[352435275,1739107833004,-500.0,0.00010485,2]
[352435276,1739107833014,-642.01,0.00010485,2]
[352435277,1739107833024,-500.0,0.00010485,2]
[352435278,1739107833034,-539.72,0.00010485,2]
[352435279,1739107833044,-500.0,0.00010485,2]
[352435280,1739107833053,-500.0,0.00010485,2]
[352435281,1739107833063,-500.0,0.00010485,2]
[352435282,1739107833072,-500.0,0.00010485,2]
[352435283,1739107833080,-500.0,0.00010485,2]
[352435284,1739107833089,-500.0,0.00010485,2]
[352435285,1739107833097,-5120.724,0.000105,2]
[352435286,1739107833107,-262.024,0.000105,2]
[352435287,1739107833117,-150.0,0.00010575,2]
[352435288,1739107833126,-1000.0,0.00010588,2]
[352435289,1739107833136,-985.50954584,0.00010601,2]
[352435290,1739107833151,-2386.87135811,0.00010601,2]
[352435291,1739107833161,-500.0,0.00010614,2]
[352435292,1739107833170,-500.0,0.00010614,2]
[352435293,1739107833180,-500.0,0.00010614,2]
[352435294,1739107833189,-574.37,0.00010614,2]
[352435295,1739107833198,-500.0,0.00010614,2]
[352435296,1739107833208,-594.17,0.00010614,2]
[352435297,1739107833217,-500.0,0.00010614,2]
[352435298,1739107833226,-500.0,0.00010614,2]
[352435299,1739107833237,-500.0,0.00010614,2]
[352435300,1739107833248,-500.0,0.00010614,2]
[352435301,1739107833259,-500.0,0.00010614,2]
[352435302,1739107833268,-500.0,0.00010614,2]
[352435303,1739107833279,-500.0,0.00010614,2]
[352435304,1739107833288,-505.84,0.00010614,2]
[352435305,1739107833299,-579.83,0.00010614,2]
[352435306,1739107833308,-500.0,0.00010614,2]
[352435307,1739107833318,-652.14,0.00010614,2]
[352435308,1739107833328,-500.0,0.00010614,2]
[352435309,1739107833337,-500.0,0.00010614,2]
[352435310,1739107833346,-500.0,0.00010614,2]
[352435311,1739107833355,-500.0,0.00010614,2]
[352435312,1739107833365,-502.15886099,0.00010614,2]
[352435313,1739107833374,-500.0,0.00010614,2]
[352435314,1739107833383,-500.0,0.00010614,2]
[352435315,1739107833393,-500.0,0.00010614,2]
[352435316,1739107833402,-500.0,0.00010614,2]
[352435317,1739107833412,-527.38,0.00010614,2]
[352435318,1739107833422,-500.0,0.00010614,2]
[352435319,1739107833432,-501.0598438,0.00010614,2]
[352435320,1739107833441,-655.75,0.00010614,2]
[352435321,1739107833451,-787.42,0.00010614,2]
[352435322,1739107833460,-810.3,0.00010614,2]
[352435323,1739107833470,-500.0,0.00010614,2]
[352435324,1739107833479,-500.0,0.00010614,2]
[352435325,1739107833489,-500.0,0.00010614,2]
[352435326,1739107833498,-500.0,0.00010614,2]
[352435327,1739107833508,-500.0,0.00010614,2]
[352435328,1739107833518,-500.0,0.00010614,2]
[352435329,1739107833528,-500.0,0.00010614,2]
[352435330,1739107833538,-500.0,0.00010614,2]
[352435331,1739107833547,-860.15,0.00010614,2]
[352435332,1739107833557,-556.55,0.00010614,2]
[352435333,1739107833566,-500.0,0.00010614,2]
[352435334,1739107833575,-500.0,0.00010614,2]
[352435335,1739107833585,-597.29,0.00010614,2]
[352435336,1739107833594,-1061.93,0.00010614,2]
[352435337,1739107833603,-500.0,0.00010614,2]
[352435338,1739107833612,-500.0,0.00010614,2]
[352435339,1739107833622,-500.0,0.00010614,2]
[352435340,1739107833633,-500.0,0.00010614,2]
[352435341,1739107833642,-500.0,0.00010614,2]
[352435342,1739107833651,-500.0,0.00010614,2]
[352435343,1739107833659,-500.0,0.00010614,2]
[352435344,1739107833668,-594.83,0.00010614,2]
[352435345,1739107833678,-500.0,0.00010614,2]
[352435346,1739107833687,-500.0,0.00010614,2]
[352435347,1739107833696,-500.0,0.00010614,2]
[352435348,1739107833705,-500.0,0.00010614,2]
[352435349,1739107833714,-500.0,0.00010614,2]
[352435350,1739107833723,-500.0,0.00010614,2]
[352435351,1739107833732,-500.0,0.00010614,2]
[352435352,1739107833741,-500.0,0.00010614,2]
[352435353,1739107833751,-500.0,0.00010614,2]
[352435354,1739107833761,-500.0,0.00010614,2]
[352435355,1739107833770,-180.26852773,0.00010614,2]
[352435356,1739107833779,-500.0,0.00010614,2]
[352435357,1739107833789,-500.0,0.00010614,2]
[352435358,1739107833799,-500.0,0.00010614,2]
[352435359,1739107833808,-500.0,0.00010614,2]
[352435360,1739107833817,-500.0,0.00010614,2]
[352435361,1739107833826,-509.2,0.00010614,2]
[352435362,1739107833836,-500.0,0.00010614,2]
[352435363,1739107833845,-500.0,0.00010614,2]
[352435364,1739107833854,-500.0,0.0001062,2]
[352435365,1739107833863,-603.14,0.0001062,2]
[352435366,1739107833873,-500.0,0.0001062,2]
[352435367,1739107833884,-869.24,0.0001062,2]
[352435368,1739107833899,-917.81,0.0001062,2]
[352435369,1739107833909,-620.420557,0.0001062,2]
[352435370,1739107833918,-500.0,0.0001062,2]
[352435371,1739107833928,-643.61,0.0001062,2]
[352435372,1739107833937,-622.5,0.0001062,2]
[352435373,1739107833946,-167.662516,0.0001062,2]
[352435374,1739107833955,-500.0,0.0001062,2]
[352435375,1739107833965,-155.501538,0.0001062,2]
[352435376,1739107833974,-712.57,0.0001062,2]
[352435377,1739107833983,-749.43,0.0001062,2]
[352435378,1739107833992,-504.51,0.0001062,2]
[352435379,1739107834001,-612.163729,0.0001062,2]
[352435380,1739107834011,-500.0,0.0001062,2]
[352435381,1739107834020,-773.52,0.0001062,2]
[352435382,1739107834030,-500.0,0.0001062,2]
[352435383,1739107834039,-500.0,0.0001062,2]
[352435384,1739107834048,-1582.01,0.0001062,2]
[352435385,1739107834058,-500.0,0.0001062,2]
[352435386,1739107834067,-656.96370789,0.0001062,2]
[352435387,1739107834093,-576.24629211,0.0001062,2]
[352435388,1739107834102,-655.54,0.0001062,2]
[352435389,1739107834112,-979.19,0.0001062,2]
[352435390,1739107834121,-500.0,0.0001062,2]
[352435391,1739107834130,-697.89,0.0001062,2]
[352435392,1739107834139,-917.86,0.0001062,2]
[352435393,1739107834149,-772.07,0.0001062,2]
[352435394,1739107834158,-2450.21,0.0001062,2]
[352435395,1739107834167,-1029.57,0.0001062,2]
[352435396,1739107834176,-517.95,0.0001062,2]
[352435397,1739107834186,-803.93,0.0001062,2]
[352435398,1739107834195,-500.0,0.0001062,2]
[352435399,1739107834204,-823.01,0.0001062,2]
[352435400,1739107834214,-1007.33,0.0001062,2]
[352435401,1739107834223,-500.0,0.0001062,2]
[352435402,1739107834233,-809.98,0.0001062,2]
[352435403,1739107834246,-817.22,0.0001062,2]
[352435404,1739107834255,-997.12,0.0001062,2]
[352435405,1739107834265,-862.14,0.0001062,2]
[352435406,1739107834275,-536.42,0.0001062,2]
[352435407,1739107834285,-540.78,0.0001062,2]
[352435408,1739107834295,-1290.99,0.0001062,2]
[352435409,1739107834304,-905.18,0.0001062,2]
[352435410,1739107834313,-2008.31,0.0001062,2]
[352435411,1739107834323,-941.54,0.0001062,2]
[352435412,1739107834333,-999.5,0.0001062,2]
[352435413,1739107834342,-500.0,0.0001062,2]
[352435414,1739107834351,-1002.42,0.0001062,2]
[352435415,1739107834360,-180.20881085,0.0001062,2]
[352435419,1739107837836,-156.69,9.906e-05,2]
[352435420,1739107837846,-156.69,9.91e-05,2]
[352435421,1739107837856,-156.69,9.914e-05,2]
[352435422,1739107837865,-156.69,9.918e-05,2]
[352435423,1739107837874,-500.0,0.00010614,2]
[352435424,1739107837883,-550.95884615,0.0001062,2]
[352435425,1739107837897,-399.402343,0.0001062,2]
[352435426,1739107837908,-500.0,0.0001062,2]
[352435427,1739107837919,-803.87,0.0001062,2]
[352435428,1739107837930,-750.13,0.0001062,2]
[352435429,1739107837940,-1309.04,0.0001062,2]
[352435430,1739107837949,-500.0,0.0001062,2]
[352435431,1739107837960,-500.0,0.0001062,2]
[352435433,1739107837969,-550.74,0.0001062,2]
[352435435,1739107837979,-998.43,0.0001062,2]
[352435436,1739107837987,-602.27,0.0001062,2]
[352435437,1739107837996,-500.0,0.0001062,2]
[352435438,1739107838006,-585.34,0.0001062,2]
[352435439,1739107838015,-500.0,0.0001062,2]
[352435441,1739107838025,-500.0,0.0001062,2]
[352435443,1739107838035,-620.94352836,0.0001062,2]
[352435445,1739107838045,-412.98535426,0.0001062,2]
[352435447,1739107838055,-500.0,0.0001062,2]
[352435449,1739107838065,-511.2033621,0.0001062,2]
[352435450,1739107838074,-531.22,0.0001062,2]
[352435453,1739107838084,-647.24243988,0.0001062,2]
[352435455,1739107838093,-500.0,0.0001062,2]
[352435456,1739107838103,-500.0,0.0001062,2]
[352435458,1739107838112,-500.0,0.0001062,2]
[352435461,1739107838121,-500.0,0.0001062,2]
[352435462,1739107838130,-500.0,0.0001062,2]
[352435464,1739107838140,-500.0,0.0001062,2]
[352435466,1739107838149,-1046.48,0.0001062,2]
[352435469,1739107838158,-500.0,0.0001062,2]
[352435473,1739107838168,-906.83,0.0001062,2]
[352435476,1739107838177,-224.54313416,0.0001062,2]
[352435479,1739107838187,-500.0,0.0001062,2]
[352435482,1739107838197,-500.0,0.0001062,2]
[352435485,1739107838206,-500.0,0.0001062,2]
[352435487,1739107838215,-500.0,0.0001062,2]
[352435489,1739107838224,-500.0,0.0001062,2]
[352435490,1739107838234,-500.0,0.0001062,2]
[352435492,1739107838247,-500.0,0.0001062,2]
[352435494,1739107838256,-500.0,0.0001062,2]
[352435496,1739107838269,-304.12108303,0.0001062,2]
[352435497,1739107838279,-500.0,0.0001062,2]
[352435498,1739107838288,-357.03568112,0.0001062,2]
[352435499,1739107838297,-500.0,0.0001062,2]
[352435500,1739107838307,-500.0,0.0001062,2]
[352435501,1739107838317,-500.0,0.0001062,2]
[352435502,1739107838327,-500.0,0.0001062,2]
[352435503,1739107838336,-171.81860792,0.00010621,2]
[352435504,1739107838346,-299.16844818,0.00010621,2]
[352435505,1739107838355,-502.15921964,0.00010621,2]
[352435506,1739107838365,-500.51786291,0.00010621,2]
[352435507,1739107838375,-500.0,0.00010621,2]
[352435508,1739107838385,-500.0,0.00010621,2]
[352435509,1739107838395,-500.0,0.00010621,2]
[352435510,1739107838404,-500.0,0.00010621,2]
[352435511,1739107838413,-500.0,0.00010621,2]
[352435512,1739107838423,-500.0,0.00010621,2]
[352435513,1739107838432,-500.0,0.00010621,2]
[352435514,1739107838441,-500.0,0.00010621,2]
[352435515,1739107838451,-500.0,0.00010621,2]
[352435516,1739107838460,-500.0,0.00010621,2]
[352435517,1739107838469,-500.0,0.00010621,2]
[352435518,1739107838479,-403.9014493,0.00010621,2]
[352435519,1739107839031,-96.0985507,0.00010621,2]
[352435520,1739107839040,-500.0,0.00010621,2]
[352435521,1739107839050,-500.0,0.00010621,2]
[352435522,1739107839061,-500.0,0.00010621,2]
[352435523,1739107839070,-500.0,0.00010621,2]
[352435524,1739107839079,-505.00566725,0.00010621,2]
[352435525,1739107839090,-549.60824675,0.00010621,2]
[352435526,1739107839099,-500.0,0.00010621,2]
[352435527,1739107839109,-500.0,0.00010621,2]
[352435528,1739107839118,-500.0,0.00010621,2]
[352435529,1739107839128,-108.58185007,0.00010621,2]
[352435534,1739107839791,-156.69,9.922e-05,2]
[352435535,1739107839801,-156.69,9.927e-05,2]
[352435536,1739107839811,-156.69,9.931e-05,2]
[352435537,1739107839821,-156.69,9.935e-05,2]
[352435538,1739107839830,-2.47687052,9.939e-05,2]
[352435539,1739107839845,-154.21312948,9.939e-05,2]
[352435540,1739107839857,-156.69,9.943e-05,2]
[352435541,1739107839866,-156.69,9.947e-05,2]
[352435542,1739107839876,-156.69,9.951e-05,2]
[352435543,1739107839885,-500.0,0.0001062,2]
[352435544,1739107839895,-393.35012643,0.00010621,2]
[352435545,1739107839904,-500.0,0.00010621,2]
[352435546,1739107839914,-500.0,0.00010621,2]
[352435547,1739107839923,-500.0,0.00010621,2]
[352435548,1739107839932,-500.0,0.00010621,2]
[352435549,1739107839942,-500.0,0.00010621,2]
[352435550,1739107839951,-500.0,0.00010621,2]
[352435551,1739107839961,-500.0,0.00010621,2]
[352435552,1739107839970,-500.0,0.00010621,2]
[352435553,1739107839980,-500.0,0.00010621,2]
[352435554,1739107839989,-500.0,0.00010621,2]
[352435555,1739107840000,-500.0,0.00010621,2]
[352435556,1739107840011,-500.0,0.00010621,2]
[352435557,1739107840021,-500.0,0.00010621,2]
[352435558,1739107840030,-500.0,0.00010621,2]
[352435559,1739107840039,-599.19821324,0.00010621,2]
[352435560,1739107840049,-500.0,0.00010621,2]
[352435561,1739107840058,-500.0,0.00010621,2]